bitfinex/quotes_ETHUSD_20241024
["timestamp","ask_amount","ask_price","bid_price","bid_amount"]
[1729798154106,0.7745,2536.0,2535.7,3.94367]
[1729798154504,0.7745,2536.0,2535.6,7.49375]
[1729798154708,0.7745,2536.0,2535.7,3.9436]
[1729798154899,0.7745,2536.0,2535.6,11.43749]
[1729798155100,0.7745,2536.0,2535.6,7.49374]
[1729798156032,0.7745,2536.0,2535.6,11.4375]
[1729798156210,0.7745,2536.0,2535.6,7.49374]
[1729798156412,0.7745,2536.0,2535.7,3.94366]
[1729798157303,0.7764,2536.5,2535.7,0.07886511]
[1729798157498,0.7764,2536.5,2536.1,7.88593]
[1729798157706,0.7764,2536.5,2536.1,3.94296]
[1729798158211,0.7764,2536.5,2536.2,3.94289]
[1729798158732,4.74787964,2536.5,2536.0,3.94321]
[1729798158919,4.74787964,2536.5,2536.1,3.94303]
[1729798159243,8.69044964,2536.5,2536.0,3.94321]
[1729798159756,8.69044964,2536.5,2535.8,4.49347]
[1729798159757,0.7764,2536.1,2535.7,3.94359]
[1729798160031,0.7764,2535.7,2535.3,3.94423]
[1729798160241,4.72009,2535.7,2535.3,3.94423]
[1729798160901,4.74903964,2535.7,2535.3,3.94423]
[1729798161300,0.80535964,2535.7,2535.4,3.94413]
[1729798161738,0.80535964,2535.7,2535.2,7.8887]
[1729798162033,0.80535964,2535.7,2535.3,3.9442]
[1729798162614,0.80535964,2535.7,2535.4,3.94413]
[1729798162935,0.7764,2535.7,2535.4,3.94413]
[1729798163167,0.7764,2535.7,2535.2,3.94435]
[1729798163168,0.80535964,2535.7,2535.3,3.94429]
[1729798163441,0.7764,2535.7,2535.4,3.94411]
[1729798164131,0.80535964,2535.7,2535.3,3.94429]
[1729798164427,0.80535964,2535.7,2535.3,3.94421]
[1729798164817,0.80535964,2535.7,2535.4,3.94407]
[1729798165333,0.7764,2535.7,2535.4,3.94402]
[1729798166037,1.25127296,2535.7,2534.4,3.27509466]
[1729798166214,0.7762,2535.3,2534.9,3.94482]
[1729798166615,4.72059,2535.3,2534.9,3.94482]
[1729798167021,3.97342964,2535.2,2534.8,3.94502]
[1729798167321,0.02895964,2535.2,2534.9,3.9449]
[1729798167840,0.80515964,2535.3,2535.0,3.94476]
[1729798168023,0.80515964,2535.3,2534.9,3.94489]
[1729798168955,3.94447,2535.2,2534.8,3.94507]
[1729798169176,0.02895964,2535.1,2534.8,3.94506]
[1729798169326,0.02895964,2535.2,2534.9,3.94486]
[1729798169835,0.02895964,2535.2,2534.3,3.94573]
[1729798169836,0.8265,2534.8,2534.3,3.94573]
[1729798170038,0.8265,2534.8,2534.4,3.94565]
[1729798170039,0.02895964,2534.7,2534.4,3.94565]
[1729798170231,0.02895964,2534.7,2534.4,3.94564]
[1729798170826,4.80060964,2534.8,2534.4,3.94564]
[1729798171123,0.85545964,2534.8,2534.4,3.94563]
[1729798171840,5.2806946,2534.8,2534.3,3.94585]
[1729798172025,0.85545964,2534.8,2534.4,3.94565]
[1729798172232,0.8265,2534.8,2534.6,3.94534]
[1729798172557,0.7657,2535.1,2534.8,3.94497]
[1729798173065,0.7657,2535.5,2535.2,3.94445]
[1729798173226,0.7657,2535.5,2535.2,3.94436]
[1729798173426,0.7657,2535.5,2535.3,3.9442]
[1729798173625,0.7657,2535.5,2535.2,3.94436]
[1729798174226,0.7657,2535.5,2535.1,3.94454]
[1729798174227,0.79465964,2535.5,2535.1,3.94454]
[1729798174444,0.7657,2535.5,2535.0,3.94464]
[1729798174666,0.7657,2535.5,2535.1,0.07888348]
[1729798174833,0.7657,2535.5,2535.2,3.94444]
[1729798175135,3.94446,2535.2,2534.6,3.94533]
[1729798175338,3.94446,2535.2,2534.8,3.94508]
[1729798175339,0.81275964,2535.1,2534.8,3.94508]
[1729798175537,0.81275964,2535.1,2534.6,7.89057]
[1729798175740,0.81275964,2535.1,2534.6,3.94524]
[1729798176159,0.81275964,2535.1,2534.7,3.94523]
[1729798177140,0.7838,2535.1,2534.8,3.94506]
[1729798177354,0.7838,2535.1,2534.9,3.94491]
[1729798177561,0.7838,2535.1,2534.8,3.94506]
[1729798177735,0.7838,2535.1,2534.6,0.55]
[1729798177936,0.7838,2535.1,2534.7,3.94512]
[1729798178668,0.7838,2535.1,2534.8,3.94498]
[1729798178872,0.7838,2535.1,2534.9,3.94489]
[1729798179647,0.7838,2535.1,2534.8,3.94498]
[1729798179834,0.7838,2535.1,2534.8,7.88995]
[1729798180371,0.7838,2535.1,2534.8,3.94497]
[1729798180668,0.7838,2535.1,2534.6,3.94526]
[1729798180966,3.94501,2534.9,2534.5,3.94554]
[1729798181539,3.01,2536.0,2534.8,0.7887]
[1729798181735,0.8136,2535.9,2535.5,3.94389]
[1729798181946,0.8136,2536.3,2535.7,3.0]
[1729798182145,0.8136,2536.3,2535.9,0.55]
[1729798182383,1.29210496,2536.3,2536.1,4.49299]
[1729798182558,0.8136,2536.3,2536.1,0.55]
[1729798182749,3.942,2536.8,2536.4,0.55]
[1729798182750,0.81265964,2536.8,2536.4,0.55]
[1729798183475,0.81265964,2536.8,2536.3,0.55]
[1729798183680,4.75462964,2536.8,2536.3,0.55]
[1729798183860,4.75462964,2536.8,2536.0,3.94312]
[1729798183861,3.94214,2536.7,2536.1,0.55]
[1729798184061,0.8986366,2536.6,2536.1,4.49304]
[1729798184367,0.7837,2536.5,2536.1,0.55]
[1729798184566,0.02895964,2536.4,2536.1,0.55]
[1729798186580,0.02895964,2536.4,2536.1,4.49294]
[1729798186778,0.02895964,2536.4,2536.1,0.55]
[1729798187076,0.02895964,2536.4,2536.2,3.94287]
[1729798187279,0.02895964,2536.4,2536.3,0.55]
[1729798187580,0.81265964,2536.5,2536.1,3.94299]
[1729798187878,0.7837,2536.5,2536.2,0.55]
[1729798188084,0.02895964,2536.4,2536.2,0.55]
[1729798188393,0.02895964,2536.4,2536.0,4.49314]
[1729798188745,0.02895964,2536.6,2536.4,3.94259]
[1729798188979,0.01,2537.2,2536.5,0.55]
[1729798188980,0.8087,2536.8,2536.5,0.55]
[1729798189184,0.02895964,2536.7,2536.5,4.49234]
[1729798191179,0.02895964,2536.7,2536.4,4.49254]
[1729798191347,0.5079136,2536.7,2536.4,4.49254]
[1729798192379,0.02895964,2536.7,2536.4,4.49257]
[1729798192585,0.02895964,2536.7,2536.4,0.55]
[1729798192880,3.94238,2536.6,2536.1,3.94293]
[1729798193045,3.94277,2536.3,2535.9,3.9433]
[1729798193242,0.02895964,2536.2,2535.9,3.9433]
[1729798193446,0.02895964,2536.2,2535.9,7.8866]
[1729798193681,0.02895964,2536.2,2535.9,3.9433]
[1729798193849,0.02895964,2536.2,2535.9,3.94325]
[1729798194283,0.8964046,2536.2,2535.9,3.94325]
[1729798194483,0.8964046,2536.2,2535.8,4.4935]
[1729798194680,0.8964046,2536.2,2535.8,0.55]
[1729798194681,0.7601,2536.1,2535.8,0.55]
[1729798194986,0.02895964,2536.0,2535.7,3.94367]
[1729798195282,0.02895964,2536.0,2535.3,3.94423]
[1729798195283,4.73521,2535.8,2535.3,3.94423]
[1729798195473,3.94393,2535.6,2535.1,7.88904]
[1729798195676,0.02895964,2535.5,2535.2,3.94444]
[1729798196163,0.02895964,2535.6,2535.3,3.94429]
[1729798196362,0.02895964,2535.6,2535.3,3.94423]
[1729798196704,0.02895964,2535.6,2535.4,0.55]
[1729798196866,0.52376206,2535.6,2535.4,0.55]
[1729798197885,0.02895964,2535.5,2535.4,0.55]
[1729798198384,0.52376206,2535.6,2535.4,4.49407]
[1729798198589,0.52376206,2535.6,2535.4,0.55]
[1729798199994,0.7916,2535.8,2535.2,0.55]
[1729798200161,0.82055964,2535.8,2535.4,4.49413]
[1729798200666,0.82055964,2535.8,2535.6,3.94383]
[1729798200667,0.7916,2535.8,2535.6,3.94383]
[1729798200985,0.02895964,2535.7,2535.6,4.49381]
[1729798201169,0.8205,2536.1,2535.6,3.94383]
[1729798201369,0.8205,2536.1,2535.8,3.94352]
[1729798201695,0.8205,2536.1,2535.9,0.55]
[1729798201858,0.02895964,2536.0,2535.9,0.55]
[1729798202261,1.296836,2536.1,2535.9,0.55]
[1729798202472,0.02895964,2536.0,2535.7,0.55]
[1729798202700,3.97224964,2536.0,2535.6,0.55]
[1729798202997,3.94368,2535.8,2535.4,0.55]
[1729798203161,0.02895964,2535.7,2535.4,0.55]
[1729798203562,3.97263964,2535.7,2535.3,0.55]
[1729798203762,0.79163196,2535.6,2535.3,4.49428]
[1729798203963,0.79163196,2535.6,2535.5,0.55]
[1729798204375,0.79163196,2535.6,2535.3,4.49429]
[1729798204580,0.02895964,2535.5,2535.3,4.49429]
[1729798205394,0.79163196,2535.6,2535.3,4.49429]
[1729798205602,0.02895964,2535.7,2535.5,0.55]
[1729798205772,0.02895964,2535.7,2535.4,0.55]
[1729798206098,3.97264964,2535.7,2535.4,0.55]
[1729798206801,0.02895964,2535.7,2535.4,0.55]
[1729798206977,0.02895964,2535.7,2535.4,4.49413]
[1729798207298,0.5082596,2535.7,2535.4,4.49414]
[1729798207870,0.5082596,2535.7,2535.5,3.94399]
[1729798208070,0.47929996,2535.7,2535.5,3.94399]
[1729798208599,0.8205,2535.9,2535.6,4.49374]
[1729798208780,0.8205,2535.9,2535.8,0.55]
[1729798209103,0.8205,2535.9,2535.7,0.55]
[1729798209503,0.8205,2535.9,2535.5,4.49398]
[1729798209802,0.8205,2535.9,2535.4,3.94402]
[1729798209803,0.5082276,2535.8,2535.4,0.55]
[1729798210107,3.94408,2535.5,2534.9,0.8102]
[1729798210309,3.97317964,2535.4,2534.9,3.94482]
[1729798210509,3.97317964,2535.4,2534.7,4.0881339]
[1729798210667,0.02895964,2535.4,2535.0,3.94474]
[1729798211001,3.97314964,2535.4,2535.0,3.94474]
[1729798211393,0.79172296,2535.3,2535.1,0.55]
[1729798212206,4.71607,2535.7,2535.2,3.94446]
[1729798212508,3.97279964,2535.6,2535.2,3.94446]
[1729798212678,0.7623,2535.7,2535.4,4.49407]
[1729798212882,0.02895964,2535.6,2535.4,0.55]
[1729798213108,0.49954364,2535.6,2535.1,4.49448]
[1729798213322,4.44338364,2535.6,2535.2,3.94438]
[1729798213601,4.44338364,2535.6,2535.3,0.55]
[1729798213769,8.38735364,2535.6,2535.1,4.49461]
[1729798213966,0.943925,2535.5,2535.1,4.49461]
[1729798214327,0.02895964,2535.5,2535.3,0.55]
[1729798214675,0.02895964,2535.5,2535.2,0.55]
[1729798215576,0.02895964,2535.5,2535.2,4.49445]
[1729798216307,3.97295964,2535.5,2535.2,0.55]
[1729798216608,3.97295964,2535.5,2535.1,0.55]
[1729798216770,0.8968626,2535.5,2535.1,0.55]
[1729798216980,3.95314,2536.1,2535.6,3.94377]
[1729798216981,3.8275,2536.1,2535.6,3.94377]
[1729798217170,3.95343,2535.9,2535.6,0.55]
[1729798217368,0.02895964,2535.8,2535.6,0.55]
[1729798217794,3.97235964,2535.9,2535.6,0.55]
[1729798218109,0.8275,2535.7,2535.4,0.55]
[1729798218274,0.477102,2535.6,2535.3,4.49428]
[1729798218480,0.85645964,2535.7,2535.5,0.55]
[1729798219709,0.85645964,2535.7,2535.4,0.55]
[1729798220120,0.8275,2535.7,2535.4,0.55]
[1729798220274,0.8275,2535.7,2535.4,4.49407]
[1729798220483,0.85645964,2535.7,2535.4,4.49407]
[1729798220811,0.02895964,2535.8,2535.5,3.94398]
[1729798220988,0.8255,2535.9,2535.7,3.94357]
[1729798221188,3.94314,2536.1,2535.8,0.55]
[1729798221189,0.02895964,2536.0,2535.8,0.55]
[1729798221787,0.02895964,2536.0,2535.8,4.49342]
[1729798222002,0.02895964,2536.3,2536.0,0.55]
[1729798222180,4.3689486,2536.3,2536.0,0.55]
[1729798222512,4.3689486,2536.3,2535.9,0.55]
[1729798222811,4.3689486,2536.3,2535.9,4.49334]
[1729798223179,4.3689486,2536.3,2535.6,3.9437]
[1729798223180,3.94299,2536.2,2535.7,4.49361]
[1729798223379,0.85445964,2536.1,2535.7,0.55]
[1729798223579,3.94322,2536.0,2535.7,0.55]
[1729798223775,0.02895964,2535.9,2535.5,0.782]
[1729798224078,3.97239964,2535.9,2535.4,3.94407]
[1729798224414,3.97239964,2535.9,2535.5,3.94399]
[1729798224721,4.8464986,2535.9,2535.5,3.94399]
[1729798225024,3.94373,2535.7,2535.2,3.94436]
[1729798225180,0.85445964,2535.6,2535.2,3.94436]
[1729798225529,4.79830964,2535.6,2535.2,3.94436]
[1729798225727,4.79830964,2535.6,2535.3,3.94422]
[1729798225728,0.85445964,2535.6,2535.3,3.94422]
[1729798225893,0.85445964,2535.6,2535.4,3.94413]
[1729798226294,0.85445964,2535.6,2535.5,0.55]
[1729798226489,0.8255,2535.6,2535.5,0.55]
[1729798228222,0.85445964,2535.8,2535.5,0.55]
[1729798228421,1.8159755,2535.8,2535.5,0.55]
[1729798228593,3.94322,2536.0,2535.8,0.55]
[1729798228594,0.8255,2536.0,2535.8,0.55]
[1729798228930,0.85445964,2536.0,2535.8,0.55]
[1729798229294,0.8255,2536.0,2535.8,0.55]
[1729798229616,0.8255,2536.0,2535.8,4.49349]
[1729798229794,0.79645964,2536.2,2535.8,4.49349]
[1729798229995,1.6646616,2536.2,2535.9,3.94335]
[1729798230401,4.70947,2536.8,2536.2,3.94276]
[1729798230602,0.02895964,2536.7,2536.4,3.94249]
[1729798230932,0.02895964,2536.7,2536.3,3.94268]
[1729798230933,0.02895964,2536.7,2536.3,4.49271]
[1729798231111,0.02895964,2536.7,2536.4,3.94251]
[1729798231634,0.02895964,2536.7,2536.4,7.88503]
[1729798231801,0.02895964,2536.7,2536.5,3.94242]
[1729798232001,0.79645964,2536.8,2536.5,4.49241]
[1729798232625,1.2702936,2536.8,2536.5,0.55]
[1729798232806,1.2702936,2536.8,2536.1,4.49304]
[1729798232807,3.94239,2536.6,2536.1,4.49304]
[1729798233015,3.97149964,2536.5,2536.1,4.49304]
[1729798233202,0.7911,2536.4,2535.9,0.55]
[1729798233395,0.02895964,2536.3,2535.9,0.55]
[1729798233628,0.02895964,2536.3,2536.0,3.94321]
[1729798233834,0.8175,2536.6,2536.2,7.8857]
[1729798234019,0.47383396,2536.8,2536.4,3.94245]
[1729798234337,0.5027936,2536.8,2536.5,0.55]
[1729798234647,0.52621436,2536.7,2536.5,0.55]
[1729798234943,0.02895964,2536.6,2536.4,4.49258]
[1729798235123,0.02895964,2536.6,2536.4,0.55]
[1729798235327,0.02895964,2536.6,2536.3,4.49265]
[1729798236207,0.02895964,2536.6,2536.3,0.55]
[1729798236409,0.02895964,2536.6,2536.3,4.49259]
[1729798236610,0.02895964,2536.6,2536.5,0.55]
[1729798237141,4.75933,2536.9,2536.5,0.55]
[1729798237142,0.02895964,2536.8,2536.5,4.49242]
[1729798237339,0.02895964,2536.8,2536.5,4.49235]
[1729798237748,0.02895964,2536.8,2536.7,3.94212]
[1729798237938,0.02895964,2537.1,2536.9,0.55]
[1729798238139,3.94126,2537.3,2536.9,0.55]
[1729798238140,0.02895964,2537.2,2536.9,0.55]
[1729798238316,4.71399,2537.5,2536.9,4.49181]
[1729798238514,0.472399,2537.4,2537.1,0.55]
[1729798238837,0.773,2537.5,2537.2,0.55]
[1729798239338,0.773,2537.5,2537.2,4.49126]
[1729798239544,0.02895964,2537.4,2537.2,4.49126]
[1729798239740,0.02895964,2537.3,2537.1,0.55]
[1729798239946,0.02895964,2537.4,2537.1,0.55]
[1729798240143,0.8973196,2537.4,2537.1,0.55]
[1729798240526,0.02895964,2537.4,2537.1,0.55]
[1729798240844,0.80195964,2537.5,2537.2,0.55]
[1729798241046,0.12529754,2537.8,2537.4,4.49097]
[1729798241211,0.02895964,2537.7,2537.4,0.55]
[1729798241553,0.12529754,2537.8,2537.7,4.49057]
[1729798242055,0.12529754,2537.8,2537.7,0.55]
[1729798242255,0.12529754,2537.8,2537.5,4.49085]
[1729798242457,0.91819754,2537.8,2537.4,0.55]
[1729798242655,0.91819754,2537.8,2537.1,3.0]
[1729798242656,3.96960964,2537.7,2537.1,3.94138]
[1729798242961,4.45839036,2537.7,2537.2,3.94125]
[1729798243637,4.45839036,2537.7,2537.3,3.94116]
[1729798243948,0.12529754,2537.8,2537.6,3.94061]
[1729798244156,0.12529754,2537.8,2537.7,4.49057]
[1729798247449,0.12529754,2537.8,2537.7,4.56936711]
[1729798247834,0.12529754,2537.8,2537.7,4.49057]
[1729798248054,0.12529754,2537.8,2537.7,8.32107]
[1729798249255,0.02529754,2537.8,2537.7,8.32107]
[1729798251172,0.02529754,2537.8,2537.7,0.55]
[1729798251472,0.02529754,2537.8,2537.6,3.94062]
[1729798251839,0.02529754,2537.8,2537.5,3.94088]
[1729798253071,3.96572754,2537.8,2537.4,3.94091]
[1729798253311,0.02529754,2537.8,2537.4,4.26756061]
[1729798253475,0.02529754,2537.8,2537.7,3.94057]
[1729798254137,0.02529754,2537.8,2537.7,5.29647]
[1729798254461,0.02529754,2537.8,2537.7,9.56402374]
[1729798254669,0.02529754,2537.8,2537.7,9.48521904]
[1729798255473,0.02529754,2537.8,2537.7,5.29647]
[1729798255648,0.02529754,2537.8,2537.7,5.37527224]
[1729798256277,0.02529754,2537.8,2537.7,5.29647]
[1729798256780,0.02529754,2537.8,2537.7,4.56937228]
[1729798257188,0.02529754,2537.8,2537.7,4.49057]
[1729798257787,0.02529754,2537.8,2537.7,4.56937227]
[1729798257992,0.02529754,2537.8,2537.7,4.49057]
[1729798258793,0.02529754,2537.8,2537.7,8.75812134]
[1729798258966,0.02529754,2537.8,2537.7,12.46761904]
[1729798261759,0.02529754,2537.8,2537.7,7.49057]
[1729798262195,0.02529754,2537.8,2537.7,3.55]
[1729798262373,0.02529754,2537.8,2537.7,3.94057]
[1729798263681,0.02529754,2537.8,2537.7,4.49057]
[1729798264497,0.02529754,2537.8,2537.7,8.35767541]
[1729798264706,0.02529754,2537.8,2537.7,8.27887]
[1729798266883,0.02529754,2537.8,2537.7,12.46761904]
[1729798267092,3.9393,2538.6,2537.7,12.46761904]
[1729798267093,3.93835,2539.2,2538.0,0.01]
[1729798267289,3.96743964,2539.1,2538.7,0.55]
[1729798267488,0.7856,2539.3,2539.0,0.55]
[1729798267705,3.93835,2539.2,2539.0,0.55]
[1729798267861,3.93835,2539.2,2538.8,0.55]
[1729798268368,4.75264964,2539.3,2538.8,0.55]
[1729798268562,3.88831,2539.2,2538.8,0.55]
[1729798268802,3.93863,2539.0,2538.6,0.55]
[1729798269100,0.02895964,2538.9,2538.6,0.55]
[1729798269607,3.86243096,2539.0,2538.6,0.55]
[1729798269900,3.86243096,2539.0,2538.6,4.48917]
[1729798270267,3.93893,2538.8,2538.5,0.55]
[1729798270613,0.7982,2538.7,2538.3,3.93964]
[1729798270993,6.09162934,2541.5,2538.7,3.93895]
[1729798270994,0.7982,2539.4,2538.7,3.93895]
[1729798271304,3.93816,2539.3,2538.7,3.93895]
[1729798271503,3.93824,2539.2,2538.7,7.87789]
[1729798271702,3.93824,2539.2,2538.7,3.93894]
[1729798271909,3.93816,2539.3,2538.8,3.93885]
[1729798272092,3.93827,2539.2,2538.8,3.93885]
[1729798272501,3.93816,2539.3,2538.9,0.55]
[1729798272805,3.93826,2539.2,2538.9,0.55]
[1729798273007,3.93851,2539.1,2538.6,0.55]
[1729798273328,3.93881,2538.9,2538.6,0.55]
[1729798273505,0.7725,2539.0,2538.6,3.93917]
[1729798273669,4.71106,2539.0,2538.6,3.93917]
[1729798274769,0.7725,2539.0,2538.5,4.4893]
[1729798274996,0.7725,2539.0,2538.7,4.48893]
[1729798276510,3.93866,2539.0,2538.6,0.55]
[1729798276686,7.87734,2539.0,2538.6,0.55]
[1729798277004,3.93876,2538.9,2538.4,4.48941]
[1729798277211,3.93866,2539.0,2538.5,3.93933]
[1729798277428,3.93866,2539.0,2538.6,3.93917]
[1729798277572,3.93866,2539.0,2538.7,0.55]
[1729798278129,3.93866,2539.0,2538.5,0.55]
[1729798278286,3.93875,2538.9,2538.5,0.55]
[1729798278614,3.93875,2538.9,2538.5,4.48933]
[1729798278919,3.93866,2539.0,2538.7,0.55]
[1729798279724,0.783,2539.1,2538.9,3.93863]
[1729798279904,3.93762,2539.6,2539.0,0.55]
[1729798280220,3.93762,2539.6,2538.9,0.55]
[1729798280221,3.93819,2539.3,2538.9,0.55]
[1729798280794,3.93787,2539.5,2539.1,0.55]
[1729798280990,3.9381,2539.3,2539.1,0.55]
[1729798281321,3.93787,2539.5,2539.0,0.55]
[1729798281623,3.93771,2539.6,2539.2,0.55]
[1729798281799,7.87508,2539.7,2539.2,5.34240408]
[1729798281993,3.93747,2539.7,2539.2,5.26364]
[1729798282325,3.9374,2539.8,2539.4,0.55]
[1729798282527,3.93767,2539.6,2539.4,0.55]
[1729798282727,3.93779,2539.5,2539.2,0.55]
[1729798283798,3.93765,2539.6,2539.2,0.55]
[1729798284005,3.9378,2539.5,2539.2,0.55]
[1729798285636,3.93748,2539.7,2539.3,3.93806]
[1729798286126,3.93795,2539.4,2539.1,0.55]
[1729798287042,0.8224,2539.5,2538.4,4.70318]
[1729798287189,0.01,2539.7,2538.5,3.93924]
[1729798287190,3.93879,2538.9,2538.5,3.93924]
[1729798287586,3.93879,2538.9,2538.5,7.87849]
[1729798287987,0.8224,2539.0,2538.7,3.93901]
[1729798288192,0.8224,2539.0,2538.5,3.93924]
[1729798288527,4.76096,2539.0,2538.6,7.20761199]
[1729798288691,0.8224,2539.0,2538.7,0.55]
[1729798288888,3.93814,2539.3,2538.9,0.55]
[1729798289208,3.93839,2539.2,2538.8,0.55]
[1729798289407,3.93863,2539.0,2538.6,0.55]
[1729798289625,3.93863,2539.0,2538.6,4.48908]
[1729798290096,3.93838,2539.2,2538.7,3.93888]
[1729798290298,0.7867,2539.3,2539.0,0.55]
[1729798290499,3.93826,2539.2,2539.0,0.55]
[1729798290812,3.9384,2539.1,2538.6,0.55]
[1729798290996,3.93879,2538.9,2538.6,0.55]
[1729798291197,3.93858,2539.0,2538.5,0.55]
[1729798291415,3.93852,2539.1,2538.5,3.89726005]
[1729798291631,3.93865,2539.0,2538.7,0.55]
[1729798291998,7.87706,2539.1,2538.7,0.55]
[1729798292199,3.93852,2539.1,2538.7,0.55]
[1729798292440,7.87703,2539.1,2538.7,0.55]
[1729798292634,3.93858,2539.0,2538.7,0.55]
[1729798292932,4.7249,2539.3,2538.9,3.9386]
[1729798293133,0.7867,2539.3,2539.0,4.48847]
[1729798293340,4.72486,2539.3,2539.0,0.55]
[1729798293709,0.7867,2539.3,2539.0,0.55]
[1729798293925,4.72485,2539.3,2539.0,0.55]
[1729798295105,0.7867,2539.3,2539.0,0.55]
[1729798295444,0.7867,2539.3,2539.0,4.48848]
[1729798295736,3.93789,2539.5,2539.0,4.48847]
[1729798295905,3.93795,2539.4,2539.0,4.48847]
[1729798296106,3.93815,2539.3,2539.0,0.55]
[1729798296301,4.75328,2539.2,2538.9,0.55]
[1729798296550,3.93864,2539.0,2538.8,0.55]
[1729798296706,0.815,2539.2,2538.3,0.7881]
[1729798296909,3.93925,2538.6,2538.3,0.7881]
[1729798297438,3.93896,2538.8,2538.4,3.93947]
[1729798298320,3.93844,2539.1,2538.7,3.26848199]
[1729798298635,3.93833,2539.2,2538.8,0.55]
[1729798299341,3.93833,2539.2,2538.8,4.48885]
[1729798299848,0.815,2539.3,2538.8,8.42762]
[1729798300141,3.93831,2539.2,2538.8,4.48882]
[1729798300507,3.93825,2539.2,2538.8,0.55]
[1729798302018,3.93825,2539.2,2538.8,4.48882]
[1729798302222,4.75311,2539.3,2538.8,4.48882]
[1729798302749,8.6913,2539.3,2538.8,4.48882]
[1729798303158,4.75311,2539.3,2538.8,4.48882]
[1729798303362,3.93811,2539.3,2538.9,0.7608]
[1729798303529,3.93787,2539.5,2539.0,7.75694199]
[1729798304357,3.93787,2539.5,2539.0,3.81848199]
[1729798304657,5.137383,2539.6,2539.2,0.55]
[1729798304953,3.9376,2539.7,2539.2,0.55]
[1729798305277,3.93769,2539.6,2539.2,0.55]
[1729798306216,3.93769,2539.6,2539.2,4.4882]
[1729798307360,3.93748,2539.7,2539.2,4.48813]
[1729798307555,0.8327,2540.1,2539.5,3.93778]
[1729798307858,4.76956,2540.1,2539.7,3.93745]
[1729798309148,4.76956,2540.1,2539.6,0.55]
[1729798309460,4.76956,2540.1,2539.6,4.4876]
[1729798309974,3.93703,2540.0,2539.5,4.48776]
[1729798310278,3.93703,2540.0,2539.7,0.55]
[1729798310581,3.93678,2540.2,2539.7,5.27495]
[1729798310932,3.93687,2540.1,2539.7,5.27495]
[1729798311760,4.0606601,2540.3,2539.9,0.55]
[1729798311971,0.1241201,2540.3,2539.9,4.48714]
[1729798312261,0.1241201,2540.3,2540.1,0.55]
[1729798312634,3.93692,2540.1,2539.8,0.55]
[1729798312860,3.93705,2540.0,2539.8,0.55]
[1729798313028,3.88705,2540.0,2539.8,0.55]
[1729798313236,3.93694,2540.1,2539.8,3.26848199]
[1729798313469,3.93701,2540.0,2539.6,3.26848199]
[1729798313671,3.93724,2539.9,2539.6,3.26848199]
[1729798313852,3.93738,2539.8,2539.5,0.7875]
[1729798314665,3.93738,2539.8,2539.6,0.55]
[1729798314870,3.93747,2539.7,2539.5,0.7875]
[1729798315070,3.88747,2539.7,2539.5,0.7875]
[1729798315875,3.88747,2539.7,2539.4,0.55]
[1729798316232,3.83747,2539.7,2539.4,0.55]
[1729798317072,3.93733,2539.8,2539.4,0.55]
[1729798317292,3.93749,2539.7,2539.4,0.55]
[1729798317869,3.93764,2539.6,2539.4,0.55]
[1729798318072,3.93749,2539.7,2539.4,0.55]
[1729798318405,3.88749,2539.7,2539.4,0.55]
[1729798319393,3.93728,2539.9,2539.4,0.55]
[1729798319593,3.93744,2539.8,2539.4,0.55]
[1729798320564,3.93748,2539.7,2539.4,0.55]
[1729798320960,3.93725,2539.9,2539.4,4.48793]
[1729798321193,3.93734,2539.8,2539.4,0.55]
[1729798322596,0.8118,2540.0,2539.4,0.55]
[1729798322896,3.93785,2539.5,2539.1,0.7752]
[1729798323100,3.88785,2539.5,2539.1,0.7752]
[1729798323296,3.93806,2539.4,2539.1,0.7752]
[1729798323596,4.72014,2539.6,2538.9,0.79]
[1729798323773,3.93833,2539.2,2538.9,0.79]
[1729798324296,7.87556,2539.5,2538.6,0.7896]
[1729798324456,3.93857,2539.0,2538.6,0.7896]
[1729798324666,3.93893,2538.8,2538.6,0.7896]
[1729798325498,3.93877,2538.9,2538.6,0.7896]
[1729798327092,3.93844,2539.1,2538.6,0.7896]
[1729798327286,3.93855,2539.0,2538.6,0.7896]
[1729798328808,3.93875,2538.9,2538.6,0.7896]
[1729798329708,3.93857,2539.0,2538.6,0.7896]
[1729798329913,3.93841,2539.1,2538.6,0.7896]
[1729798330484,4.70175,2539.4,2538.8,3.93876]
[1729798330684,8.63984,2539.4,2538.9,0.55]
[1729798331016,9.5510154,2539.4,2538.9,0.55]
[1729798331308,4.8491254,2539.4,2539.0,0.7958]
[1729798331485,3.93794,2539.4,2539.0,0.7958]
[1729798331805,0.472014,2539.5,2539.0,0.7958]
[1729798332310,4.409864,2539.5,2539.0,4.73434]
[1729798332808,3.93785,2539.5,2539.0,4.73434]
[1729798333588,4.74668,2539.7,2539.1,8.42662]
[1729798333791,3.93762,2539.6,2539.1,4.48831]
[1729798334190,3.93781,2539.5,2539.1,0.55]
[1729798334509,3.93824,2539.2,2538.7,4.70864]
[1729798334679,3.93824,2539.2,2538.8,0.55]
[1729798334874,7.87644,2539.3,2538.8,4.48883]
[1729798335082,3.93821,2539.3,2538.8,4.48883]
[1729798335308,3.93835,2539.2,2538.8,0.55]
[1729798336315,4.72801,2539.3,2538.8,4.48877]
[1729798336877,0.7898,2539.3,2538.8,0.55]
[1729798337217,3.93812,2539.3,2538.9,3.93864]
[1729798338108,3.93812,2539.3,2538.8,4.48874]
[1729798338109,3.93851,2539.1,2538.8,0.55]
[1729798338307,1.165351,2539.1,2538.6,0.55]